lending/lending_fUSD_20240110
["ID","MTS","AMOUNT","RATE_DAILY","PERIOD"]
[311061789,1704891155962,-1185.27,0.0003315,2]
[311061790,1704891155972,-1387.63,0.0003315,2]
[311061791,1704891155982,-500.0,0.0003315,2]
[311061792,1704891155992,-904.42,0.0003315,2]
[311061793,1704891156003,-1196.53,0.0003315,2]
[311061794,1704891156013,-525.95,0.0003315,2]
[311061795,1704891156023,-1787.03,0.0003315,2]
[311061796,1704891156033,-674.1,0.0003315,2]
[311061797,1704891156043,-1077.63,0.0003315,2]
[311061798,1704891156053,-755.38,0.0003315,2]
[311061799,1704891156063,-500.0,0.0003315,2]
[311061800,1704891156073,-581.62,0.0003315,2]
[311061801,1704891156083,-1024.85,0.0003315,2]
[311061802,1704891156094,-1257.2,0.0003315,2]
[311061803,1704891156104,-500.0,0.0003315,2]
[311061804,1704891156114,-836.69,0.0003315,2]
[311061805,1704891156123,-525.09,0.0003315,2]
[311061806,1704891156134,-500.0,0.0003315,2]
[311061807,1704891156144,-782.38,0.0003315,2]
[311061808,1704891156154,-1749.35,0.0003315,2]
[311061809,1704891156163,-1000.33,0.0003315,2]
[311061810,1704891156174,-604.42,0.0003315,2]
[311061811,1704891156186,-500.0,0.0003315,2]
[311061812,1704891156196,-765.38,0.0003315,2]
[311061813,1704891156206,-878.75,0.0003315,2]
[311061814,1704891156216,-500.0,0.0003315,2]
[311061815,1704891156226,-679.72,0.0003315,2]
[311061816,1704891156235,-1881.36,0.0003315,2]
[311061817,1704891156245,-631.79,0.0003315,2]
[311061818,1704891156254,-500.0,0.0003315,7]
[311061819,1704891156264,-500.0,0.0003315,2]
[311061820,1704891156275,-500.0,0.0003315,2]
[311061821,1704891156286,-1166.65,0.0003315,2]
[311061822,1704891156296,-756.6,0.0003315,2]
[311061823,1704891156307,-2844.34,0.0003315,2]
[311061824,1704891156317,-641.96,0.0003315,2]
[311061825,1704891156329,-1044.01,0.0003315,2]
[311061826,1704891156340,-500.0,0.0003315,2]
[311061827,1704891156354,-500.0,0.0003315,2]
[311061828,1704891156364,-500.0,0.0003315,2]
[311061829,1704891156375,-1332.76,0.0003315,2]
[311061830,1704891156385,-1244.23,0.0003315,2]
[311061831,1704891156397,-500.0,0.0003315,2]
[311061832,1704891156409,-729.63,0.0003315,2]
[311061833,1704891156419,-757.76,0.0003315,2]
[311061834,1704891156431,-500.0,0.0003315,2]
[311061835,1704891156442,-500.0,0.0003315,2]
[311061836,1704891156453,-500.0,0.0003315,2]
[311061837,1704891156464,-1127.84,0.0003315,2]
[311061838,1704891156474,-1154.12,0.0003315,2]
[311061839,1704891156486,-1044.13,0.0003315,2]
[311061840,1704891156496,-500.0,0.0003315,2]
[311061841,1704891156506,-551.43,0.0003315,2]
[311061842,1704891156516,-1354.13,0.0003315,2]
[311061843,1704891156526,-500.0,0.0003315,2]
[311061844,1704891156537,-638.51,0.0003315,2]
[311061845,1704891156547,-862.28,0.0003315,2]
[311061846,1704891156558,-1181.63,0.0003315,2]
[311061847,1704891156568,-757.94,0.0003315,2]
[311061848,1704891156577,-1015.59,0.0003315,2]
[311061849,1704891156587,-823.4,0.0003315,2]
[311061850,1704891156597,-848.07,0.0003315,2]
[311061851,1704891156607,-783.14,0.0003315,2]
[311061852,1704891156617,-500.0,0.0003315,2]
[311061853,1704891156627,-1634.17,0.0003315,2]
[311061854,1704891156637,-892.34,0.0003315,2]
[311061855,1704891156648,-500.0,0.0003315,2]
[311061856,1704891156658,-500.0,0.0003315,2]
[311061857,1704891156668,-500.0,0.0003315,2]
[311061858,1704891156678,-1731.94,0.0003315,2]
[311061859,1704891156690,-1300.74,0.0003315,2]
[311061860,1704891156700,-1118.35,0.0003315,2]
[311061861,1704891156711,-821.71,0.0003315,2]
[311061862,1704891156721,-1097.53,0.0003315,2]
[311061863,1704891156732,-1115.5,0.0003315,2]
[311061864,1704891156743,-799.47,0.0003315,2]
[311061865,1704891156753,-500.0,0.0003315,2]
[311061866,1704891156764,-500.0,0.0003315,2]
[311061867,1704891156774,-500.0,0.0003315,2]
[311061868,1704891156784,-1438.57,0.0003315,2]
[311061869,1704891156795,-1466.84,0.0003315,2]
[311061870,1704891156805,-652.51,0.0003315,2]
[311061871,1704891156815,-500.0,0.0003315,2]
[311061872,1704891156825,-1106.08,0.0003315,2]
[311061873,1704891156835,-1804.0,0.0003315,2]
[311061874,1704891156845,-1166.35,0.0003315,2]
[311061875,1704891156855,-500.0,0.0003315,2]
[311061876,1704891156865,-1134.06,0.0003315,2]
[311061877,1704891156875,-1196.42,0.0003315,2]
[311061878,1704891156884,-545.73,0.0003315,2]
[311061879,1704891156895,-848.12,0.0003315,2]
[311061880,1704891156904,-1566.38,0.0003315,2]
[311061881,1704891156914,-714.75,0.0003315,2]
[311061882,1704891156924,-907.54,0.0003315,2]
[311061883,1704891156935,-556.57,0.0003315,2]
[311061884,1704891156945,-924.42,0.0003315,2]
[311061885,1704891156956,-500.0,0.0003315,2]
[311061886,1704891156966,-2743.08,0.0003315,2]
[311061887,1704891156976,-500.0,0.0003315,2]
[311061888,1704891156986,-500.0,0.0003315,2]
[311061889,1704891156995,-500.0,0.0003315,2]
[311061890,1704891157005,-1841.24,0.0003315,2]
[311061891,1704891157016,-1407.91,0.0003315,2]
[311061892,1704891157026,-627.59,0.0003315,2]
[311061893,1704891157036,-1648.35,0.0003315,2]
[311061894,1704891157046,-546.87,0.0003315,2]
[311061895,1704891157056,-574.07,0.0003315,2]
[311061896,1704891157066,-1615.48,0.0003315,2]
[311061897,1704891157075,-555.68,0.0003315,2]
[311061898,1704891157086,-997.75,0.0003315,2]
[311061899,1704891157096,-1687.92,0.0003315,2]
[311061900,1704891157107,-783.23,0.0003315,2]
[311061901,1704891157117,-1436.16,0.0003315,2]
[311061902,1704891157127,-500.0,0.0003315,2]
[311061903,1704891157137,-893.83,0.0003315,2]
[311061904,1704891157146,-608.29,0.0003315,2]
[311061905,1704891157156,-1132.03,0.0003315,2]
[311061906,1704891157166,-1380.57,0.0003315,2]
[311061907,1704891157175,-933.87,0.0003315,2]
[311061908,1704891157186,-500.0,0.0003315,2]
[311061909,1704891157195,-500.0,0.0003315,2]
[311061910,1704891157204,-957.42,0.0003315,2]
[311061911,1704891157214,-995.9,0.0003315,2]
[311061912,1704891157539,-500.0,0.0003315,2]
[311061913,1704891157555,-895.94,0.0003315,2]
[311061914,1704891157564,-1856.22,0.0003315,2]
[311061915,1704891157575,-1480.74,0.0003315,2]
[311061916,1704891157584,-500.0,0.0003315,2]
[311061917,1704891157594,-776.38,0.0003315,2]
[311061918,1704891157604,-1298.12,0.0003315,2]
[311061919,1704891157615,-333.27,0.0003315,2]
[311061920,1704891157625,-1188.98,0.0003315,2]
[311061921,1704891157635,-791.87,0.0003315,2]
[311061922,1704891157646,-318.81158901,0.0003315,2]
[311061923,1704891157655,-577.69,0.0003315,2]
[311061924,1704891157665,-700.71,0.0003315,2]
[311061925,1704891157675,-682.9,0.0003315,2]
[311061926,1704891157686,-923.76,0.0003315,2]
[311061927,1704891157696,-1290.28,0.0003315,2]
[311061928,1704891157705,-694.02,0.0003315,2]
[311061929,1704891157714,-500.0,0.0003315,2]
[311061930,1704891157725,-672.12,0.0003315,2]
[311061931,1704891157735,-751.24,0.0003315,2]
[311061932,1704891157744,-1037.2,0.0003315,2]
[311061933,1704891157754,-791.74,0.0003315,2]
[311061934,1704891157764,-2135.41,0.0003315,2]
[311061935,1704891157774,-630.74,0.0003315,2]
[311061936,1704891157784,-500.0,0.0003315,2]
[311061937,1704891157795,-500.0,0.0003315,2]
[311061938,1704891157805,-1065.89,0.0003315,2]
[311061939,1704891157815,-1611.31,0.0003315,2]
[311061940,1704891157825,-500.0,0.0003315,2]
[311061941,1704891157835,-537.76,0.0003315,2]
[311061942,1704891157846,-500.0,0.0003315,2]
[311061943,1704891157855,-1096.88,0.0003315,2]
[311061944,1704891157866,-500.0,0.0003315,2]
[311061945,1704891157876,-1235.12,0.0003315,2]
[311061946,1704891157886,-500.0,0.0003315,2]
[311061947,1704891157896,-508.12,0.0003315,2]
[311061948,1704891157906,-1351.54,0.0003315,2]
[311061949,1704891157916,-1332.96,0.0003315,2]
[311061950,1704891157926,-500.0,0.0003315,2]
[311061951,1704891157939,-384.85735028,0.0003315,2]
[311061952,1704891157949,-525.51,0.0003315,2]
[311061953,1704891157959,-500.0,0.0003315,2]
[311061954,1704891157968,-500.0,0.0003315,2]
[311061955,1704891157978,-500.0,0.0003315,2]
[311061956,1704891157988,-2153.22,0.0003315,2]
[311061957,1704891157997,-894.32,0.0003315,2]
[311061958,1704891158005,-1551.48,0.0003315,2]
[311061959,1704891158015,-551.86,0.0003315,2]
[311061960,1704891158023,-1823.35,0.0003315,2]
[311061961,1704891158032,-656.22,0.0003315,2]
[311061962,1704891158042,-903.93,0.0003315,2]
[311061963,1704891158057,-784.54,0.0003315,2]
[311061964,1704891158071,-232.7919442,0.0003315,2]
[311061965,1704891158081,-1466.91,0.0003315,2]
[311061966,1704891158092,-1006.56,0.0003315,2]
[311061967,1704891158102,-1655.17,0.0003315,2]
[311061968,1704891158112,-3133.81,0.0003315,2]
[311061969,1704891158123,-761.32,0.0003315,2]
[311061970,1704891158133,-533.9608496,0.0003315,2]
[311061971,1704891158144,-500.0,0.0003315,2]
[311061972,1704891158154,-1170.77,0.0003315,2]
[311061973,1704891158165,-533.08,0.0003315,2]
[311061974,1704891158175,-500.0,0.0003315,2]
[311061975,1704891158190,-1368.59,0.0003315,2]
[311061976,1704891158201,-661.49,0.0003315,2]
[311061977,1704891158211,-1618.49,0.0003315,2]
[311061978,1704891158226,-696.22,0.0003315,2]
[311061979,1704891158237,-500.0,0.0003315,2]
[311061980,1704891158248,-8919.11,0.0003315,2]
[311061981,1704891158258,-1000.0,0.0003315,2]
[311061982,1704891158270,-813.18,0.0003315,2]
[311061983,1704891158280,-500.0,0.0003315,2]
[311061984,1704891158292,-484.51,0.0003315,2]
[311061985,1704891158302,-916.52,0.0003315,2]
[311061986,1704891158312,-500.0,0.0003315,2]
[311061987,1704891158324,-500.0,0.0003315,2]
[311061988,1704891158334,-1010.96,0.0003315,2]
[311061989,1704891158344,-500.0,0.0003315,2]
[311061990,1704891158359,-669.44,0.0003315,2]
[311061991,1704891158371,-1654.81,0.0003315,2]
[311061992,1704891158381,-895.64,0.0003315,2]
[311061993,1704891158392,-5719.09,0.0003315,2]
[311061994,1704891158403,-500.0,0.0003315,2]
[311061995,1704891158413,-3241.68,0.0003315,2]
[311061996,1704891158424,-2147.06,0.0003315,2]
[311061997,1704891158440,-500.0,0.0003315,2]
[311061998,1704891158450,-4583.07,0.0003315,2]
[311061999,1704891158459,-4104.47,0.0003315,2]
[311062000,1704891158469,-500.0,0.0003315,2]
[311062001,1704891158480,-1135.8,0.0003315,2]
[311062002,1704891158491,-4864.49,0.0003315,2]
[311062003,1704891158501,-1172.6,0.0003315,2]
[311062004,1704891158512,-1306.53,0.0003315,2]
[311062005,1704891158523,-500.0,0.0003315,2]
[311062006,1704891158534,-605.42,0.0003315,2]
[311062007,1704891158544,-500.0,0.0003315,2]
[311062008,1704891158555,-613.66,0.0003315,2]
[311062009,1704891158566,-3152.91,0.0003315,2]
[311062010,1704891158575,-1839.88,0.0003315,2]
[311062011,1704891158586,-848.46,0.0003315,2]
[311062012,1704891158597,-1217.95,0.0003315,2]
[311062013,1704891158607,-3087.19,0.0003315,2]
[311062014,1704891158617,-1107.32,0.0003315,2]
[311062015,1704891158627,-1243.05,0.0003315,2]
[311062016,1704891158638,-500.0,0.0003315,2]
[311062017,1704891158648,-1973.9,0.0003315,2]
[311062018,1704891158658,-500.0,0.0003315,2]
[311062019,1704891158669,-998.38,0.0003315,2]
[311062020,1704891158679,-1702.03,0.0003315,2]
[311062021,1704891158695,-515.72,0.0003315,2]
[311062022,1704891158705,-500.0,0.0003315,2]
[311062023,1704891158715,-3061.74,0.0003315,2]
[311062024,1704891158725,-500.0,0.0003315,2]
[311062025,1704891158735,-3064.76,0.0003315,2]
[311062026,1704891158746,-996.01,0.0003315,2]
[311062027,1704891158756,-1068.18,0.0003315,2]
[311062028,1704891158766,-1153.97,0.0003315,2]
[311062029,1704891158777,-6469.31,0.0003315,2]
[311062030,1704891158788,-500.0,0.0003315,2]
[311062031,1704891158798,-1516.45,0.0003315,2]
[311062032,1704891158808,-20572.41,0.0003315,2]
[311062033,1704891158818,-835.36,0.0003315,2]
[311062034,1704891158827,-508.77,0.0003315,2]
[311062035,1704891158837,-876.85,0.0003315,2]
[311062036,1704891158847,-1211.96,0.0003315,2]
[311062037,1704891158858,-8935.6,0.0003315,2]
[311062038,1704891158868,-500.0,0.0003315,2]
[311062039,1704891158878,-749.11,0.0003315,2]
[311062040,1704891158888,-500.0,0.0003315,2]
[311062041,1704891158899,-500.0,0.0003315,2]
[311062042,1704891158909,-500.0,0.0003315,2]
[311062043,1704891158920,-3428.01,0.0003315,2]
[311062044,1704891158930,-51777.21,0.0003315,2]
[311062045,1704891158944,-1411.74,0.0003315,2]
[311062046,1704891158955,-500.0,0.0003315,2]
[311062047,1704891158965,-2414.62,0.0003315,2]
[311062048,1704891158975,-28702.52,0.0003315,2]
[311062049,1704891158985,-1449.33,0.0003315,2]
[311062050,1704891158995,-729.81,0.0003315,2]
[311062051,1704891159005,-1741.33,0.0003315,2]
[311062052,1704891159015,-500.0,0.0003315,2]
[311062053,1704891159025,-18242.51,0.0003315,2]
[311062054,1704891159035,-982.47,0.0003315,2]
[311062055,1704891159045,-1198.42,0.0003315,2]
[311062056,1704891159054,-3044.12,0.0003315,2]
[311062057,1704891159065,-7322.32,0.0003315,2]
[311062058,1704891159075,-669.65,0.0003315,2]
[311062059,1704891159085,-883.98,0.0003315,2]
[311062060,1704891159096,-936.43,0.0003315,2]
[311062061,1704891159106,-500.0,0.0003315,2]
[311062062,1704891159116,-1931.34,0.0003315,2]
[311062063,1704891159126,-596.34,0.0003315,2]
[311062064,1704891159135,-5311.52,0.0003315,2]
[311062065,1704891159145,-591.04,0.0003315,2]
[311062066,1704891159155,-1716.44,0.0003315,2]
[311062067,1704891159165,-756.46,0.0003315,2]
[311062068,1704891159175,-1935.34,0.0003315,2]
[311062069,1704891159187,-1335.68,0.0003315,2]
[311062070,1704891159197,-630.3,0.0003315,2]
[311062071,1704891159208,-11436.48,0.0003315,2]
[311062072,1704891159218,-896.69,0.0003315,2]
[311062073,1704891159229,-5273.56,0.0003315,2]
[311062074,1704891159240,-7205.25,0.0003315,2]
[311062075,1704891159250,-738.84,0.0003315,2]
[311062076,1704891159261,-500.0,0.0003315,2]
[311062077,1704891159271,-962.89,0.0003315,2]
[311062078,1704891159281,-1192.7,0.0003315,2]
[311062079,1704891159291,-717.02,0.0003315,2]
[311062080,1704891159301,-1285.43,0.0003315,2]
[311062081,1704891159312,-6876.74,0.0003315,2]
[311062082,1704891159322,-1732.97,0.0003315,2]
[311062083,1704891159332,-2245.33,0.0003315,2]
[311062084,1704891159342,-1567.49,0.0003315,2]
[311062085,1704891159352,-7057.36,0.0003315,2]
[311062086,1704891159362,-500.0,0.0003315,2]
[311062087,1704891159372,-790.0,0.0003315,2]
[311062088,1704891159382,-932.57,0.0003315,2]
[311062089,1704891159392,-2499.19,0.0003315,2]
[311062090,1704891159403,-1333.7,0.0003315,2]
[311062091,1704891159413,-2921.42,0.0003315,2]
[311062092,1704891159423,-6606.78,0.0003315,2]
[311062093,1704891159435,-4128.32,0.0003315,2]
[311062094,1704891159446,-783.63,0.0003315,2]
[311062095,1704891159456,-500.0,0.0003315,2]
[311062096,1704891159466,-682.44,0.0003315,2]
[311062097,1704891159476,-1293.22,0.0003315,2]
[311062098,1704891159487,-1047.14,0.0003315,2]
[311062099,1704891159497,-3328.34,0.0003315,2]
[311062100,1704891159508,-953.47,0.0003315,2]
[311062101,1704891159518,-2896.37,0.0003315,2]
[311062102,1704891159528,-668.72,0.0003315,2]
[311062103,1704891159537,-3025.67,0.0003315,2]
[311062104,1704891159548,-1350.56,0.0003315,2]
[311062105,1704891159558,-500.0,0.0003315,2]
[311062106,1704891159568,-2153.92,0.0003315,2]
[311062107,1704891159578,-2341.12,0.0003315,2]
[311062108,1704891159588,-2098.62,0.0003315,2]
[311062109,1704891159598,-703.2,0.0003315,2]
[311062110,1704891159608,-1930.74,0.0003315,2]
[311062111,1704891159618,-500.0,0.0003315,2]
[311062112,1704891159628,-5339.67,0.0003315,2]
[311062113,1704891159639,-503.67,0.0003315,2]
[311062114,1704891159650,-500.0,0.0003315,2]
[311062115,1704891159660,-4486.53,0.0003315,2]
[311062116,1704891159670,-1093.38,0.0003315,2]
[311062117,1704891159680,-3990.83,0.0003315,2]
[311062118,1704891159695,-843.02,0.0003315,2]
[311062119,1704891159705,-3222.77,0.0003315,2]
[311062120,1704891159715,-915.67,0.0003315,2]
[311062121,1704891159724,-500.0,0.0003315,2]
[311062122,1704891159734,-6104.89,0.0003315,2]
[311062123,1704891159744,-723.37,0.0003315,2]
[311062124,1704891159753,-500.0,0.0003315,2]
[311062125,1704891159764,-500.0,0.0003315,2]
[311062126,1704891159773,-1149.9,0.0003315,2]
[311062127,1704891159783,-5798.03,0.0003315,2]
[311062128,1704891159793,-4625.49,0.0003315,2]
[311062129,1704891159803,-550.5,0.0003315,2]
[311062130,1704891159812,-13391.47,0.0003315,2]
[311062131,1704891159822,-1882.58,0.0003315,2]
[311062132,1704891159832,-1438.47,0.0003315,2]
[311062133,1704891159843,-3391.89,0.0003315,2]
[311062134,1704891159853,-17056.02,0.0003315,2]
[311062135,1704891159863,-1223.46,0.0003315,2]
[311062136,1704891159874,-1903.64,0.0003315,2]
[311062137,1704891159884,-535.17,0.0003315,2]
[311062138,1704891159894,-500.0,0.0003315,2]
[311062139,1704891159903,-1447.74,0.0003315,2]
[311062140,1704891159913,-903.74,0.0003315,2]
[311062141,1704891159922,-1181.32,0.0003315,2]
[311062142,1704891159931,-897.9,0.0003315,2]
[311062143,1704891159944,-2647.12,0.0003315,2]
[311062144,1704891159954,-500.0,0.0003315,2]
[311062145,1704891159964,-3416.68,0.0003315,2]
[311062146,1704891159973,-500.0,0.0003315,2]
[311062147,1704891159983,-1323.99,0.0003315,2]
[311062148,1704891159992,-2765.04,0.0003315,2]
[311062149,1704891160002,-605.66,0.0003315,2]
[311062150,1704891160012,-656.06,0.0003315,2]
[311062151,1704891160021,-1240.59,0.0003315,2]
[311062152,1704891160031,-1066.0,0.0003315,2]
[311062153,1704891160041,-3383.46,0.0003315,2]
[311062154,1704891160051,-1858.38,0.0003315,2]
[311062155,1704891160192,-556.19,0.0003315,2]
[311062156,1704891160203,-1414.02,0.0003315,2]
[311062157,1704891160213,-1721.84,0.0003315,2]
[311062158,1704891160223,-506.73,0.0003315,2]
[311062159,1704891160233,-6948.27,0.0003315,2]
[311062160,1704891160242,-500.0,0.0003315,2]
[311062161,1704891160252,-905.55,0.0003315,2]
[311062162,1704891160261,-787.87,0.0003315,2]
[311062163,1704891160271,-1113.97,0.0003315,2]
[311062164,1704891160281,-1850.44,0.0003315,2]
[311062165,1704891160291,-875.41,0.0003315,2]
[311062166,1704891160301,-13325.5,0.0003315,2]
[311062167,1704891160310,-622.97,0.0003315,2]
[311062168,1704891160320,-975.55,0.0003315,2]
[311062169,1704891160331,-2699.57,0.0003315,2]
[311062170,1704891160340,-816.51,0.0003315,2]
[311062171,1704891160352,-602.85,0.0003315,2]
[311062172,1704891160361,-1571.82,0.0003315,2]
[311062173,1704891160373,-1902.92,0.0003315,2]
[311062174,1704891160383,-1172.85,0.0003315,2]
[311062175,1704891160393,-1103.19,0.0003315,2]
[311062176,1704891160403,-1029.72,0.0003315,2]
[311062177,1704891160413,-551.04,0.0003315,2]
[311062178,1704891160423,-500.0,0.0003315,2]
[311062179,1704891160436,-719.09,0.0003315,2]
[311062180,1704891160446,-500.0,0.0003315,2]
[311062181,1704891160456,-816.66,0.0003315,2]
[311062182,1704891160466,-4042.49,0.0003315,2]
[311062183,1704891160476,-711.14,0.0003315,2]
[311062184,1704891160485,-750.11,0.0003315,2]
[311062185,1704891160495,-6582.51,0.0003315,2]
[311062186,1704891160505,-176.37664826,0.0003315,2]
[311062187,1704891160516,-548.8,0.0003315,2]
[311062188,1704891160525,-3983.8,0.0003315,2]
[311062189,1704891160535,-1032.31,0.0003315,2]
[311062190,1704891160545,-3506.94,0.0003315,2]
[311062191,1704891160556,-541.81,0.0003315,2]
[311062192,1704891160566,-1408.06,0.0003315,2]
[311062193,1704891160577,-1081.29,0.0003315,2]
[311062194,1704891160586,-1527.61,0.0003315,2]
[311062195,1704891160596,-2858.46,0.0003315,2]
[311062196,1704891160606,-660.7,0.0003315,2]
[311062197,1704891160616,-8785.85,0.0003315,2]
[311062198,1704891160625,-2768.41,0.0003315,2]
[311062199,1704891160635,-4131.39,0.0003315,2]
[311062200,1704891160645,-2292.41,0.0003315,2]
[311062201,1704891160654,-746.91,0.0003315,2]
[311062202,1704891160664,-2876.26,0.0003315,2]
[311062203,1704891160674,-2170.96,0.0003315,2]
[311062204,1704891160686,-2634.97,0.0003315,2]
[311062205,1704891160695,-1142.75,0.0003315,2]
[311062206,1704891160705,-1716.45,0.0003315,2]
[311062207,1704891160714,-1039.47,0.0003315,2]
[311062208,1704891160724,-3670.86,0.0003315,2]
[311062209,1704891160734,-500.0,0.0003315,2]
[311062210,1704891160743,-500.0,0.0003315,2]
[311062211,1704891160752,-602.26,0.0003315,2]
[311062212,1704891160761,-500.0,0.0003315,2]
[311062213,1704891160771,-614.41,0.0003315,2]
[311062214,1704891160780,-2195.0,0.0003315,2]
[311062215,1704891160789,-1673.5,0.0003315,2]
[311062216,1704891160799,-2390.42,0.0003315,2]
[311062217,1704891160808,-391.30927735,0.0003315,2]
[311062218,1704891160819,-3651.48,0.0003315,2]
[311062219,1704891160828,-5390.38,0.0003315,2]
[311062220,1704891160838,-38163.08,0.0003315,2]
[311062221,1704891160847,-1000.0,0.0003315,2]
[311062222,1704891160857,-500.0,0.0003315,2]
[311062223,1704891160866,-1305.31,0.0003315,2]
[311062224,1704891160875,-1396.89,0.0003315,2]
[311062225,1704891160885,-1467.77,0.0003315,2]
[311062226,1704891160894,-1697.53,0.0003315,2]
[311062227,1704891160903,-14627.59,0.0003315,2]
[311062228,1704891160912,-2605.66,0.0003315,2]
[311062229,1704891160921,-500.0,0.0003315,2]
[311062230,1704891160931,-500.0,0.0003315,2]
[311062231,1704891160943,-1698.7,0.0003315,2]
[311062232,1704891160952,-601.21,0.0003315,2]
[311062233,1704891160962,-3381.31,0.0003315,2]
[311062234,1704891160971,-3094.77,0.0003315,2]
[311062235,1704891160980,-999.48,0.0003315,2]
[311062236,1704891160990,-607.81,0.0003315,2]
[311062237,1704891160999,-30990.15,0.0003315,2]
[311062238,1704891161008,-2892.8,0.0003315,2]
[311062239,1704891161018,-5290.12,0.0003315,2]
[311062240,1704891161027,-500.0,0.0003315,2]
[311062241,1704891161037,-1578.38,0.0003315,2]
[311062242,1704891161046,-2017.0,0.0003315,2]
[311062243,1704891161055,-840.86,0.0003315,2]
[311062244,1704891161065,-500.0,0.0003315,2]
[311062245,1704891161074,-4827.58,0.0003315,2]
[311062246,1704891161084,-3994.86,0.0003315,2]
[311062247,1704891161094,-1048.25,0.0003315,2]
[311062248,1704891161103,-642.94,0.0003315,2]
[311062249,1704891161112,-1904.14,0.0003315,2]
[311062250,1704891161121,-500.0,0.0003315,2]
[311062251,1704891161130,-1424.2,0.0003315,2]
[311062252,1704891161140,-539.92,0.0003315,2]
[311062253,1704891161149,-1050.78,0.0003315,2]
[311062254,1704891161158,-500.0,0.0003315,2]
[311062255,1704891161167,-2602.05,0.0003315,2]
[311062256,1704891161177,-5503.03,0.0003315,2]
[311062257,1704891161188,-1522.78,0.0003315,2]
[311062258,1704891161198,-2260.26,0.0003315,2]
[311062259,1704891161207,-821.97,0.0003315,2]
[311062260,1704891161217,-753.71,0.0003315,2]
[311062261,1704891161226,-1838.58,0.0003315,2]
[311062262,1704891161236,-901.27,0.0003315,2]
[311062263,1704891161246,-782.96,0.0003315,2]
[311062264,1704891161254,-6384.72,0.0003315,2]
[311062265,1704891161264,-627.49,0.0003315,2]
[311062266,1704891161273,-599.02,0.0003315,2]
[311062267,1704891161282,-500.0,0.0003315,2]
[311062268,1704891161291,-632.63,0.0003315,2]
[311062269,1704891161300,-2196.77,0.0003315,2]
[311062270,1704891161310,-864.41,0.0003315,2]
[311062271,1704891161320,-2505.88,0.0003315,2]
[311062272,1704891161330,-1516.0,0.0003315,2]
[311062273,1704891161339,-6045.31,0.0003315,2]
[311062274,1704891161349,-3365.53,0.0003315,2]
[311062275,1704891161359,-720.09,0.0003315,2]
[311062276,1704891161368,-1765.01,0.0003315,2]
[311062277,1704891161377,-870.91,0.0003315,2]
[311062278,1704891161388,-621.93247342,0.0003315,2]
[311062279,1704891161398,-927.81,0.0003315,2]
[311062280,1704891161408,-2120.01,0.0003315,2]
[311062281,1704891161417,-1570.4,0.0003315,2]
[311062282,1704891161427,-868.01,0.0003315,2]
[311062283,1704891161439,-500.0,0.0003315,2]
[311062284,1704891161448,-767.25,0.0003315,2]
[311062285,1704891161458,-2584.72,0.0003315,2]
[311062286,1704891161467,-5200.93,0.0003315,2]
[311062287,1704891161478,-1450.1,0.0003315,2]
[311062288,1704891161487,-1551.81,0.0003315,2]